Cogmind - Beta 11.1 @@@ ROGUE MODE // 2022.07.15 @ 22:27:03 Player: Calazard Result: Destroyed by G-67 Veteran with Field Laser Performance ------------- Evolutions (5) 2500 Regions Visited (15) 3000 Robots Destroyed (42) 210 Value Destroyed (1447) 1447 Prototype IDs (10) 200 Alien Tech Used (0) 0 Bonus (1543) 1543 TOTAL SCORE: 8900 Bonus ------- Pacifist 200 Follower Combat Kills 743 Met Imprinter 300 Was Imprinted 300 Cogmind --------- Core Integrity 0/1000 Matter 300/300 Energy 100/100 System Corruption 18% Temperature Cool (21) Movement Core (100) Ox1 Location -5/Upper Caves Parts ------- > --- POWER (2) -------- (None) > --- PROPULSION (4) --- (None) > --- UTILITY (6) ------ Advanced Signal Interpreter Improved Launcher Guidance Computer Improved Reaction Control System Zionite Weapon Casing > --- WEAPON (5) ------- Makeshift Shrapnel Gun > --- INVENTORY (5) ---- Zionite Heavy DM Reactor Compact Battery (200) Makeshift Salvage Targeting Computer Improved Component Analysis Suite Ripper Peak State ------------ > --- POWER ------------ Zionite Heavy DM Reactor Zionite Heavy DM Reactor > --- PROPULSION ------- Carbon-fiber Leg Improved Carbon-fiber Leg Zionite Composite Leg I Zionite Composite Leg I > --- UTILITY ---------- Improved Heat Sink Medium Storage Unit Zionite Biocell Advanced Signal Interpreter Improved Core Shielding Hacking Drone Bay > --- WEAPON ----------- Storm Laser > --- INVENTORY -------- Light Nuclear Core Compact Battery Advanced Signal Interpreter Makeshift Salvage Targeting Computer Armor Integrity Analyzer Zionite Weapon Casing Advanced Hacking Suite Corruption Screen Mass Driver [Rating: 92] Favorites ----------- Power Light Nuclear Core Engine Heavy Ion Engine Power Core Light Nuclear Core Reactor Zionite Heavy DM Reactor Propulsion Xenon Bombardment Thruster Treads Medium Treads Leg Improved Carbon-fiber Leg Wheel Wheel Hover Unit Improved Hover Unit Flight Unit Xenon Bombardment Thruster Utility Improved Heat Sink Device Improved Heat Sink Storage Small Storage Unit Processor Advanced Signal Interpreter Hackware Advanced Hacking Suite Protection Improved Light Armor Plating Weapon Shock Rifle Energy Gun Shock Rifle Energy Cannon Plasma Cannon Ballistic Gun Barrage Gun Ballistic Cannon Mass Driver Impact Weapon Heavy Flail Slashing Weapon Phasing Sabre Build | -11 -10 -9 -9 -9 -8 -8 -7 -6 -6 -6 -6 -5 -5 -5 -5 ------- Run | Scr Mat Mat Min Exi Min Mat Fac Fac Low Low Zio Pro Fac Upp Upp Slots Evolved 10 | . . 2 . . . 2 2 2 . . . . 2 . . Power 1 | . . . . . . . 1 . . . . . . . . Propulsion 2 | . . . . . . 1 . 1 . . . . . . . Utility 4 | . . 2 . . . . . 1 . . . . 1 . . Weapon 3 | . . . . . . 1 1 . . . . . 1 . . Parts Attached 101 | 6 . 7 5 1 2 10 27 7 . 1 7 2 16 7 3 Power 13 | 1 . 1 1 . 1 1 4 . . . . . 4 . . Engine 5 | 1 . 1 1 . . . 2 . . . . . . . . Core 6 | . . . . . 1 1 2 . . . . . 2 . . Reactor 2 | . . . . . . . . . . . . . 2 . . Propulsion 29 | 2 . . 2 . 1 1 14 3 . . 1 2 3 . . Treads 5 | . . . . . . 1 4 . . . . . . . . Leg 12 | . . . . . 1 . 5 . . . 1 2 3 . . Wheel 5 | 2 . . 1 . . . 2 . . . . . . . . Hover 1 | . . . 1 . . . . . . . . . . . . Flight 6 | . . . . . . . 3 3 . . . . . . . Utility 35 | 1 . 5 . 1 . 4 3 4 . . 2 . 6 7 2 Device 11 | . . 1 . . . . 2 1 . . 1 . 3 2 1 Storage 9 | 1 . 1 . 1 . 1 . 1 . . 1 . 2 . 1 Processor 6 | . . . . . . 2 . 1 . . . . . 3 . Hackware 1 | . . . . . . . . . . . . . . 1 . Protection 8 | . . 3 . . . 1 1 1 . . . . 1 1 . Artifact . | . . . . . . . . . . . . . . . . Weapon 24 | 2 . 1 2 . . 4 6 . . 1 4 . 3 . 1 Energy Gun 10 | . . . . . . 3 5 . . . 1 . 1 . . Energy Cannon 2 | . . . . . . . 1 . . . . . 1 . . Ballistic Gun 5 | 2 . 1 . . . . . . . . 1 . . . 1 Ballistic Cannon 2 | . . . . . . . . . . 1 . . 1 . . Launcher . | . . . . . . . . . . . . . . . . Special Weapon . | . . . . . . . . . . . . . . . . Impact Weapon 3 | . . . 2 . . 1 . . . . . . . . . Slashing Weapon 2 | . . . . . . . . . . . 2 . . . . Piercing Weapon . | . . . . . . . . . . . . . . . . Special Melee Weapon . | . . . . . . . . . . . . . . . . Unidentified Prototypes 8 | . . 1 . . . . . 1 . . 2 . 3 1 . Corrupted Parts 4 | . . . . . . . . . . . . 1 3 . . System Corruption 17 | . . . . . . . . . . . . 4 13 . . Parts Lost 42 | . . 6 2 . 2 1 17 . . . . . 5 7 2 Power 7 | . . 1 1 . . . 4 . . . . . . 1 . Propulsion 13 | . . 2 1 . 1 1 5 . . . . . 2 1 . Utility 13 | . . 1 . . 1 . 2 . . . . . 2 5 2 Weapon 9 | . . 2 . . . . 6 . . . . . 1 . . Highest Loss Streak 9 | . . 6 2 . 1 1 9 . . . . . 3 7 1 To Critical Strikes . | . . . . . . . . . . . . . . . . Average Slot Usage (%) 64 | . 85 66 52 52 51 71 86 48 60 61 74 51 55 34 30 Core 3 | . . . . . 4 9 10 . . . . . 2 2 . Treads 2 | . . . . . . . 12 . . . . . . . . Leg 4 | . . . . . 3 9 3 . . . . 11 13 2 . Wheel 1 | . 28 18 3 . . . 1 . . . . . . . . Hover 1 | . . . 11 11 3 . . . . . . . . . . Flight 5 | . . . . . . . . 15 26 26 23 . . . . Device 8 | . . . 11 11 6 . 5 6 6 6 10 13 13 8 3 Storage 7 | . 14 9 . 8 11 9 7 13 13 13 8 6 5 2 . Processor 7 | . . . . . . 14 14 6 6 6 6 6 5 11 17 Protection 3 | . . 8 4 . . 2 1 6 6 6 6 6 2 2 5 Energy Gun 7 | . . . . . . 22 20 . . . 2 6 3 . . Energy Cannon 1 | . . . . . . . 4 . . . . . . . . Ballistic Gun 1 | . 28 19 . . . . . . . . 2 . . . 2 Impact Weapon 2 | . . . 19 22 22 3 . . . . . . . . . Slashing Weapon 1 | . . . . . . . . . . . 6 . . . . Naked Turns . | . . . . . . . . . . . . . . . . Heaviest Build 81 | 11 11 20 10 12 16 22 40 10 10 19 35 35 81 20 5 Greatest Support 81 | 20 20 20 12 7 10 20 76 24 24 24 24 48 81 24 3 Greatest Overweight (x) 9 | . . 1 2 1 5 2 9 . . 1 1 1 3 . 1 Average Overweight (x) . | . . . . . 1 1 . . . . . . . . . Largest Inventory Capacity 15 | 8 8 10 5 8 8 15 8 8 8 8 10 10 10 10 5 Average Capacity 8 | 6 8 7 5 7 8 8 8 8 8 8 8 10 9 7 5 Most Carried 10 | 2 2 6 5 5 6 8 8 8 5 7 10 10 10 10 5 Average Carried 7 | 1 2 5 3 4 5 7 7 4 4 5 8 9 9 7 4 Final Capacity 10 | 8 8 5 5 8 8 8 8 8 8 8 10 10 10 5 5 Final Carried 10 | 2 2 5 4 5 6 8 8 4 5 7 10 10 10 4 5 Class Distribution -------------------- 50% | Mutant 25% | Tank 18% | Gunner Dominant Class ---------------- Mutant | -10/Materials Mutant | -9/Materials Mutant | -9/Mines Mutant | -9/Exiles Mutant | -8/Mines Gunner | -8/Materials Gunner | -7/Factory Mutant | -6/Factory Mutant | -6/Lower Caves Mutant | -6/Lower Caves Mutant | -6/Zion Tank | -5/Proximity Caves Tank | -5/Factory Mutant | -5/Upper Caves Mutant | -5/Upper Caves Resources | -11 -10 -9 -9 -9 -8 -8 -7 -6 -6 -6 -6 -5 -5 -5 -5 ----------- Run | Scr Mat Mat Min Exi Min Mat Fac Fac Low Low Zio Pro Fac Upp Upp Matter Collected 1339 | 239 . 159 50 10 20 60 278 . 57 11 109 55 135 74 82 Remotely . | . . . . . . . . . . . . . . . . Salvage Created 1533 | . . 183 135 . 130 88 827 . . . . . 170 . . Parts 76 | . . 12 1 . 4 8 42 . . . . . 9 . . Haulers Intercepted . | . . . . . . . . . . . . . . . . Recyclers Shooed 2 | . . 1 . . . . . . . . . . 1 . . Parts Field Recycled . | . . . . . . . . . . . . . . . . Retrieved Matter . | . . . . . . . . . . . . . . . . Parts Self-Destructed 16 | . . . . . . . . . . . . 4 . . 12 Prevented 7 | . . . . . . . . . . . . 7 . . . Kills | -11 -10 -9 -9 -9 -8 -8 -7 -6 -6 -6 -6 -5 -5 -5 -5 ------- Run | Scr Mat Mat Min Exi Min Mat Fac Fac Low Low Zio Pro Fac Upp Upp Combat Hostiles Destroyed 33 | . . 4 4 . 3 2 16 . . . . . 4 . . Melee 10 | . . . 3 . 3 1 3 . . . . . . . . Guns 17 | . . 4 . . . 1 10 . . . . . 2 . . Cannons 5 | . . . . . . . 3 . . . . . 2 . . Classes Destroyed 11 | . . 3 4 . 1 . 3 . . . . . . . . Worker 5 | . . . 2 . . . 3 . . . . . . . . Builder 1 | . . . 1 . . . . . . . . . . . . Tunneler 1 | . . . 1 . . . . . . . . . . . . Operator 1 | . . 1 . . . . . . . . . . . . . Watcher 1 | . . . . . . . 1 . . . . . . . . Swarmer 8 | . . . 4 . . . 2 . . . . . 2 . . Grunt 15 | . . 3 . . 2 1 9 . . . . . . . . Brawler 1 | . . . . . 1 . . . . . . . . . . Sentry 4 | . . 1 . . . 1 2 . . . . . . . . Hunter 1 | . . . . . . . 1 . . . . . . . . Programmer 4 | . . . . . . . 2 . . . . . 2 . . Best Kill Streak 4 | . . 3 4 . 2 1 3 . . . . . 2 . . Combat Bots Only 4 | . . 3 4 . 2 1 3 . . . . . 2 . . Max Kills in Single Turn 2 | . . 2 1 . 1 1 1 . . . . . 1 . . Gunslinging 1 | . . 1 . . . . . . . . . . . . . Exploded . | . . . . . . . . . . . . . . . . Melee 1 | . . . 1 . 1 1 1 . . . . . . . . Uniques/NPCs Destroyed . | . . . . . . . . . . . . . . . . Combat | -11 -10 -9 -9 -9 -8 -8 -7 -6 -6 -6 -6 -5 -5 -5 -5 -------- Run | Scr Mat Mat Min Exi Min Mat Fac Fac Low Low Zio Pro Fac Upp Upp Damage Taken 6643 | . . 736 135 . 274 301 2684 28 . . . 78 1152 1115 140 Core 1932 | . . 216 32 . 83 33 566 . . . . . 246 678 78 Absorbed by Shields 9 | . . . . . . . . . . . . . . 5 4 Redirected to Shielding 62 | . . 2 3 . . . . . . . . . 39 . 18 Regen/Repaired (Parts) 67 | . . . . . . . . . . . . . 67 . . Core Remaining (%) 71 | 100 100 . . . 17 94 19 . . . . 100 . . . Volleys Fired 77 | . . 22 . . . 2 42 . . . 1 . 10 . . Largest 4 | . . 2 . . . 3 4 . . . 1 . 2 . . Hottest 283 | . . 43 . . . 150 283 . . . 250 . 250 . . Shots Fired 162 | . . 44 . . . 6 99 . . . 1 . 12 . . Gun 138 | . . 44 . . . 6 84 . . . 1 . 3 . . Cannon 24 | . . . . . . . 15 . . . . . 9 . . Launcher . | . . . . . . . . . . . . . . . . Special . | . . . . . . . . . . . . . . . . Kinetic 50 | . . 44 . . . . . . . . . . 6 . . Thermal 69 | . . . . . . . 65 . . . 1 . 3 . . Explosive . | . . . . . . . . . . . . . . . . Electromagnetic 43 | . . . . . . 6 34 . . . . . 3 . . Robot Hit Streak 15 | . . 7 . . . 3 15 . . . . . 4 . . Robot Miss Streak 8 | . . 4 . . . 1 2 . . . . . 8 . . Penetration Max . | . . . . . . . . . . . . . . . . Secondary Targets 2 | . . 1 . . . . 1 . . . . . . . . Max Gunslinging Chain 1 | . . 1 . . . . 1 . . . . . . . . Shots Hit Robots 121 | . . 29 10 . 13 4 57 . . . . . 8 . . Core Hits 59 | . . 11 1 . 3 2 33 . . . . . 9 . . Critical Kills . | . . . . . . . . . . . . . . . . Critical Parts Destroyed 6 | . . 1 3 . 2 . . . . . . . . . . Critical Strikes 8 | . . 1 3 . 3 . . . . . . . 1 . . Destroy 1 | . . 1 . . . . . . . . . . . . . Blast 1 | . . . . . . . . . . . . . 1 . . Smash 6 | . . . 3 . 3 . . . . . . . . . . Melee Attacks 39 | . . . 19 . 20 . . . . . . . . . . Impact 39 | . . . 19 . 20 . . . . . . . . . . Slashing . | . . . . . . . . . . . . . . . . Piercing . | . . . . . . . . . . . . . . . . Sneak Attacks 4 | . . . 4 . . . . . . . . . . . . Combat Hostiles . | . . . . . . . . . . . . . . . . Follow-up Attacks 6 | . . . 1 . 5 . . . . . . . . . . Damage Inflicted 3678 | . . 349 825 . 573 61 1294 . . . . . 576 . . Guns 1714 | . . 341 . . . 60 1034 . . . . . 279 . . Cannons 299 | . . . . . . . 134 . . . . . 165 . . Explosions 44 | . . . . . . . 44 . . . . . . . . Melee 1398 | . . . 825 . 573 . . . . . . . . . . Ramming 223 | . . 8 . . . 1 82 . . . . . 132 . . Kinetic 447 | . . 341 . . . . . . . . . . 106 . . Thermal 1078 | . . . . . . . 799 . . . . . 279 . . Explosive . | . . . . . . . . . . . . . . . . Electromagnetic 532 | . . . . . . 60 413 . . . . . 59 . . Impact 1398 | . . . 825 . 573 . . . . . . . . . . Slashing . | . . . . . . . . . . . . . . . . Piercing . | . . . . . . . . . . . . . . . . Highest Corruption 18 | . . . . . 9 . 14 . . . . 5 15 15 18 Average Corruption 9 | . . . . . 7 . 4 . . . . 4 13 15 15 Corruption Purged . | . . . . . . . . . . . . . . . . Corruption Blocked . | . . . . . . . . . . . . . . . . Effects 74 | . . . . . 2 . 11 . . . . 11 22 21 7 Message Errors 18 | . . . . . . . 2 . . . . 3 7 4 2 Matter Fused 16 | . . . . . . . 1 . . . . 3 5 4 3 Heat Flow Errors 11 | . . . . . 1 . 1 . . . . 2 5 2 . Energy Discharges 7 | . . . . . . . 3 . . . . . 1 2 1 Data Loss (minor) 11 | . . . . . 1 . 2 . . . . 3 2 3 . Data Loss (major) 3 | . . . . . . . 2 . . . . . 1 . . Alerts 3 | . . . . . . . . . . . . . 1 1 1 Misdirections 5 | . . . . . . . . . . . . . . 5 . Overload Shots . | . . . . . . . . . . . . . . . . Overflow Damage 706 | . . . 612 . 90 . 4 . . . . . . . . Projectiles . | . . . . . . . . . . . . . . . . Explosions 4 | . . . . . . . 4 . . . . . . . . Melee 702 | . . . 612 . 90 . . . . . . . . . . Knockbacks 5 | . . . 2 . . . 1 . . . . . 2 . . Impact 4 | . . . 2 . . . 1 . . . . . 1 . . Kinetic 1 | . . . . . . . . . . . . . 1 . . Secondary . | . . . . . . . . . . . . . . . . Self-Inflicted Damage 8 | . . 3 . . . . 5 . . . . . . . . Shots . | . . . . . . . . . . . . . . . . Rammed 8 | . . 3 . . . . 5 . . . . . . . . Targets Rammed 45 | . . 3 . . . 1 17 . . . . . 24 . . Kicked 31 | . . . . . . . 7 . . . . . 24 . . Crushed 6 | . . . . . . 1 5 . . . . . . . . Highest Temperature 558 | . . 38 . . 108 165 444 . . . 132 228 558 189 . Average Temperature 171 | . . 11 . . 67 83 170 . . . 66 106 217 90 . Received Heat Transfer 2055 | . . 264 . . 54 171 1005 . . . . . 66 465 30 Effects 35 | . . . . . . . 19 . . . . . 16 . . Shutdowns 7 | . . . . . . . 7 . . . . . . . . Energy Bleed 8 | . . . . . . . 4 . . . . . 4 . . Interference 9 | . . . . . . . 6 . . . . . 3 . . Matter Decay 2 | . . . . . . . 2 . . . . . . . . Short Circuit 3 | . . . . . . . . . . . . . 3 . . Damage (minor) 2 | . . . . . . . . . . . . . 2 . . Damage (major) 3 | . . . . . . . . . . . . . 3 . . Damage (core) 1 | . . . . . . . . . . . . . 1 . . Siege Activations . | . . . . . . . . . . . . . . . . Robots Corrupted . | . . . . . . . . . . . . . . . . Combat Hostiles . | . . . . . . . . . . . . . . . . Parts Fried 7 | . . . 3 . . . 4 . . . . . . . . Impact Corruptions 20 | . . . 18 . 2 . . . . . . . . . . Robots Melted . | . . . . . . . . . . . . . . . . Combat Hostiles . | . . . . . . . . . . . . . . . . Parts Melted 8 | . . . . . . . 5 . . . . . 3 . . Heat Transferred 1797 | . . . . . . . 1447 . . . . . 350 . . Parts Sabotaged . | . . . . . . . . . . . . . . . . Parts Stolen . | . . . . . . . . . . . . . . . . Parts Stripped . | . . . . . . . . . . . . . . . . Power Chain Reactions 2 | . . . . . . . 2 . . . . . . . . Missiles Intercepted . | . . . . . . . . . . . . . . . . Alert | -11 -10 -9 -9 -9 -8 -8 -7 -6 -6 -6 -6 -5 -5 -5 -5 ------- Run | Scr Mat Mat Min Exi Min Mat Fac Fac Low Low Zio Pro Fac Upp Upp Peak Influence 383 | . . 260 136 . 65 105 383 139 . . . . 301 . . Initial 94 | . . . 46 . . 25 42 94 . . . . 23 . . Average 111 | . . 108 99 . 37 42 143 114 . . . . 114 . . Maximum Alert Level 1 | . . 1 . . . . 1 . . . . . 1 . . Low Security (%) 84 | 100 100 93 100 . 100 100 74 100 . . . . 84 . . Level 1 15 | . . 6 . . . . 25 . . . . . 15 . . Level 2 . | . . . . . . . . . . . . . . . . Level 3 . | . . . . . . . . . . . . . . . . Level 4 . | . . . . . . . . . . . . . . . . Level 5 . | . . . . . . . . . . . . . . . . High Security . | . . . . . . . . . . . . . . . . Max Security . | . . . . . . . . . . . . . . . . Squads Dispatched 9 | . . 2 . . . 1 3 1 . . . . 1 . 1 Investigation 1 | . . . . . . . 1 . . . . . . . . Extermination 3 | . . . . . . . 2 . . . . . 1 . . Reinforcement 4 | . . 2 . . . 1 . 1 . . . . . . . Assault 1 | . . . . . . . . . . . . . . . 1 Garrison . | . . . . . . . . . . . . . . . . Intercept . | . . . . . . . . . . . . . . . . Searches Triggered . | . . . . . . . . . . . . . . . . Construction Impeded . | . . . . . . . . . . . . . . . . Haulers Reinforced . | . . . . . . . . . . . . . . . . Active Scanning Responses . | . . . . . . . . . . . . . . . . Cargo Convoy Interrupts . | . . . . . . . . . . . . . . . . Stealth | -11 -10 -9 -9 -9 -8 -8 -7 -6 -6 -6 -6 -5 -5 -5 -5 --------- Run | Scr Mat Mat Min Exi Min Mat Fac Fac Low Low Zio Pro Fac Upp Upp Distress Signals 2 | . . 1 . . . . . 1 . . . . . . . Communications Jammed 42 | . . . . . . . 42 . . . . . . . . Distress Signals 42 | . . . . . . . 42 . . . . . . . . Times Spotted 139 | . . 35 4 . 3 5 35 5 3 . . 3 23 11 12 Peak Tracking Total 16 | . . 16 4 . 3 3 8 4 3 . . 2 7 11 8 Tactical Retreats 20 | . . 5 . . . . 4 1 1 . . 1 5 3 . Traps | -11 -10 -9 -9 -9 -8 -8 -7 -6 -6 -6 -6 -5 -5 -5 -5 ------- Run | Scr Mat Mat Min Exi Min Mat Fac Fac Low Low Zio Pro Fac Upp Upp Traps Triggered 1 | . . . . . . . 1 . . . . . . . . Indirectly . | . . . . . . . . . . . . . . . . Trap Hack Attempts . | . . . . . . . . . . . . . . . . Triggered . | . . . . . . . . . . . . . . . . Disarmed . | . . . . . . . . . . . . . . . . Reprogrammed . | . . . . . . . . . . . . . . . . Reused . | . . . . . . . . . . . . . . . . Traps Extracted . | . . . . . . . . . . . . . . . . Installed . | . . . . . . . . . . . . . . . . Triggered 5 | . . . . . . . . . 2 . . 2 . 1 . Machines | -11 -10 -9 -9 -9 -8 -8 -7 -6 -6 -6 -6 -5 -5 -5 -5 ---------- Run | Scr Mat Mat Min Exi Min Mat Fac Fac Low Low Zio Pro Fac Upp Upp Machines Disabled 2 | . . . . . . . 2 . . . . . . . . Max in Single Turn 2 | . . . . . . . 2 . . . . . . . . Garrison Access 1 | . . . . . . . 1 . . . . . . . . Machines Sabotaged . | . . . . . . . . . . . . . . . . Garrisons Compromised . | . . . . . . . . . . . . . . . . Overloaded Fab Kills . | . . . . . . . . . . . . . . . . Hacking | -11 -10 -9 -9 -9 -8 -8 -7 -6 -6 -6 -6 -5 -5 -5 -5 --------- Run | Scr Mat Mat Min Exi Min Mat Fac Fac Low Low Zio Pro Fac Upp Upp Machines Accessed 21 | . . 2 . . . 3 8 3 . 1 . . 2 . 2 Terminals 12 | . . 2 . . . 3 4 3 . . . . . . . Fabricators 2 | . . . . . . . 2 . . . . . . . . Repair Stations 2 | . . . . . . . 1 . . . . . 1 . . Recycling Units . | . . . . . . . . . . . . . . . . Scanalyzers 1 | . . . . . . . . . . . . . 1 . . Garrison Access 1 | . . . . . . . 1 . . . . . . . . Total Hacks 44 | . . 5 . . . 8 15 5 . 1 . . 4 . 6 Successful 17 | . . 2 . . . 3 3 . . 1 . . 2 . 6 Failed 27 | . . 3 . . . 5 12 5 . . . . 2 . . Catastrophic 10 | . . 2 . . . 1 5 2 . . . . . . . Database Lockouts . | . . . . . . . . . . . . . . . . Manual 28 | . . 3 . 2 . 3 7 5 . . 1 . 4 . 3 Terminals 25 | . . 5 . . . 8 7 5 . . . . . . . Fabricators 2 | . . . . . . . 2 . . . . . . . . Repair Stations 6 | . . . . . . . 3 . . . . . 3 . . Recycling Units . | . . . . . . . . . . . . . . . . Scanalyzers 1 | . . . . . . . . . . . . . 1 . . Garrison Access 3 | . . . . . . . 3 . . . . . . . . Terminal Hacks 13 | . . 2 . . . 3 1 . . 1 . . . . 6 Record 5 | . . . . . . . . . . . . . . . 5 Prototype ID Bank 1 | . . . . . . 1 . . . . . . . . . Open Door 2 | . . . . . . . . . . 1 . . . . 1 Level Access Points 1 | . . . . . . . 1 . . . . . . . . Branch Access Points 1 | . . 1 . . . . . . . . . . . . . Hauler Manifests 1 | . . 1 . . . . . . . . . . . . . Zone Layout 2 | . . . . . . 2 . . . . . . . . . Fabricator Hacks . | . . . . . . . . . . . . . . . . Repair Station Hacks 3 | . . . . . . . 1 . . . . . 2 . . Scan Component 1 | . . . . . . . . . . . . . 1 . . Repair 1 | . . . . . . . . . . . . . 1 . . Refit 1 | . . . . . . . 1 . . . . . . . . Recycling Unit Hacks . | . . . . . . . . . . . . . . . . Scanalyzer . | . . . . . . . . . . . . . . . . Garrison Access Hacks 1 | . . . . . . . 1 . . . . . . . . Seal Access 1 | . . . . . . . 1 . . . . . . . . Unauthorized Hacks . | . . . . . . . . . . . . . . . . Terminals . | . . . . . . . . . . . . . . . . Fabricators . | . . . . . . . . . . . . . . . . Repair Stations . | . . . . . . . . . . . . . . . . Recycling Units . | . . . . . . . . . . . . . . . . Scanalyzers . | . . . . . . . . . . . . . . . . Garrison Access . | . . . . . . . . . . . . . . . . Data Cores Recovered . | . . . . . . . . . . . . . . . . Used . | . . . . . . . . . . . . . . . . Hacking Detections 16 | . . 2 . . . 2 7 3 . . . . 2 . . Full Trace Events 2 | . . 1 . . . . 1 . . . . . . . . Feedback Events . | . . . . . . . . . . . . . . . . Feedback Blocked . | . . . . . . . . . . . . . . . . Robot Schematics Acquired . | . . . . . . . . . . . . . . . . Robots Built . | . . . . . . . . . . . . . . . . Authchips . | . . . . . . . . . . . . . . . . Time . | . . . . . . . . . . . . . . . . Total Robot Build Rating . | . . . . . . . . . . . . . . . . Part Schematics Acquired . | . . . . . . . . . . . . . . . . Parts Built . | . . . . . . . . . . . . . . . . Authchips . | . . . . . . . . . . . . . . . . Time . | . . . . . . . . . . . . . . . . Total Part Build Rating . | . . . . . . . . . . . . . . . . Parts Repaired 1 | . . . . . . . . . . . . . 1 . . Time 26 | . . . . . . . . . . . . . 26 . . Parts Recycled . | . . . . . . . . . . . . . . . . Recycled Matter . | . . . . . . . . . . . . . . . . Retrieved Matter . | . . . . . . . . . . . . . . . . Retrieved Components . | . . . . . . . . . . . . . . . . Parts Scanalyzed . | . . . . . . . . . . . . . . . . Part Schematics Acquired . | . . . . . . . . . . . . . . . . Parts Damaged . | . . . . . . . . . . . . . . . . Bothacking | -11 -10 -9 -9 -9 -8 -8 -7 -6 -6 -6 -6 -5 -5 -5 -5 ------------ Run | Scr Mat Mat Min Exi Min Mat Fac Fac Low Low Zio Pro Fac Upp Upp Used RIF Installer . | . . . . . . . . . . . . . . . . Robots Hacked . | . . . . . . . . . . . . . . . . Non-combat . | . . . . . . . . . . . . . . . . Combat . | . . . . . . . . . . . . . . . . Robot Hacks Applied . | . . . . . . . . . . . . . . . . Relay Couplers Released . | . . . . . . . . . . . . . . . . Fabnet Peak Effective % . | . . . . . . . . . . . . . . . . Robots Rewired . | . . . . . . . . . . . . . . . . Allies Hacked . | . . . . . . . . . . . . . . . . Hacks Repelled . | . . . . . . . . . . . . . . . . Allies | -11 -10 -9 -9 -9 -8 -8 -7 -6 -6 -6 -6 -5 -5 -5 -5 -------- Run | Scr Mat Mat Min Exi Min Mat Fac Fac Low Low Zio Pro Fac Upp Upp Total Allies 12 | . . . 3 . . . . . . . 4 . 3 . 2 Largest Group 4 | . . . 3 . . . . . . . 4 4 3 . 2 Highest-Rated Group 204 | . . . 40 . . . . . . . 151 151 204 . 192 Highest-Rated Ally 96 | . . . 16 . . . . . . . 41 41 85 . 96 Zionite Dispatches 2 | . . . . . . . . . . . . . 2 . . Heavy 1 | . . . . . . . . . . . . . 1 . . Kinetic Resupply 1 | . . . . . . . . . . . . . 1 . . Total Orders 1 | . . . . . . . . . . . . . 1 . . RETURN 1 | . . . . . . . . . . . . . 1 . . Ally Attacks 90 | . . . . . . . . . . . . 44 12 . 34 Total Damage 2599 | . . . . . . . . . . . . 896 703 . 1000 Kills 23 | . . . . . . . . . . . . 7 8 . 8 Allies Corrupted 2 | . . . . . . . . . . . . . 1 . 1 Allies Melted . | . . . . . . . . . . . . . . . . Intel | -11 -10 -9 -9 -9 -8 -8 -7 -6 -6 -6 -6 -5 -5 -5 -5 ------- Run | Scr Mat Mat Min Exi Min Mat Fac Fac Low Low Zio Pro Fac Upp Upp Robot Analysis Total . | . . . . . . . . . . . . . . . . Derelict Logs Recovered 11 | . . . 2 . . . . . 1 3 1 2 . 1 1 Drone Launches 1 | . . . . . . . . . . . . . 1 . . Drone Recoveries 1 | . . . . . . . . . . . . . 1 . . Exploration | -11 -10 -9 -9 -9 -8 -8 -7 -6 -6 -6 -6 -5 -5 -5 -5 ------------- Run | Scr Mat Mat Min Exi Min Mat Fac Fac Low Low Zio Pro Fac Upp Upp Turns Passed 7844 | 75 66 418 261 536 152 377 1701 60 184 121 1267 1147 864 379 236 Spaces Moved 6571 | 83 83 437 304 546 70 163 936 131 394 316 1072 734 484 520 298 Core 725 | 11 . 69 5 . 4 . 1 . . . . . . 337 298 Treads 469 | . . . . . . 3 466 . . . . . . . . Legs 1812 | . . . . . 30 160 193 . . . 28 734 484 183 . Wheels 833 | 72 83 368 62 . . . 248 . . . . . . . . Hover 819 | . . . 237 546 36 . . . . . . . . . . Flight 1913 | . . . . . . . 28 131 394 316 1044 . . . . Fastest Speed 31 | 50 80 50 50 60 120 120 34 31 31 31 31 120 110 50 50 Average Speed 104 | 76 80 75 68 97 157 207 148 35 35 36 107 153 144 71 60 Slowest Speed 500 | 80 80 100 150 120 300 260 500 37 37 109 190 190 410 110 100 Overloaded Moves . | . . . . . . . . . . . . . . . . Propulsion Burnouts . | . . . . . . . . . . . . . . . . Robots Hopped 5 | . . . . . . . 1 1 3 . . . . . . Cave-ins Triggered . | . . . . . . . . . . . . . . . . Exploration Rate (%) 41 | 5 18 37 64 89 18 26 26 5 48 55 87 82 13 73 25 Regions Visited 15 Branch Regions 9 Pre-discovered Areas 3 | . . . . . . . . . . 1 1 . . . 1 Known Exits Taken 10 | . . 1 . . . 1 1 1 1 1 1 1 1 1 . Unknown Exits Taken 5 | 1 1 . 1 1 1 . . . . . . . . . . Scrap Searched 14 | . . . 1 . . . . . 2 1 3 3 . 1 3 Spaces Dug . | . . . . . . . . . . . . . . . . Terrain Destroyed 5 | . . . . . . . . . . . . . 5 . . Melee . | . . . . . . . . . . . . . . . . Projectile 5 | . . . . . . . . . . . . . 5 . . AOE . | . . . . . . . . . . . . . . . . Terrain Rammed . | . . . . . . . . . . . . . . . . Walls Destroyed . | . . . . . . . . . . . . . . . . Machines Disabled . | . . . . . . . . . . . . . . . . Actions | -11 -10 -9 -9 -9 -8 -8 -7 -6 -6 -6 -6 -5 -5 -5 -5 --------- Run | Scr Mat Mat Min Exi Min Mat Fac Fac Low Low Zio Pro Fac Upp Upp Total 7314 | 93 82 486 328 547 87 196 1161 143 434 319 1189 758 611 527 353 Wait 358 | . . . 2 . . 9 94 . 43 1 89 17 53 . 50 Move 6547 | 82 82 436 303 545 69 162 934 128 387 315 1071 733 483 519 298 Hop 5 | . . . . . . . 1 1 3 . . . . . . Pick Up 70 | 5 . 9 . 1 1 5 20 4 1 2 7 3 11 . 1 Fast Attach 64 | 3 . 5 3 1 2 8 16 1 . 1 6 2 11 3 2 Attach 24 | 3 . 1 2 . . 1 5 5 . . . . 2 4 1 Detach 3 | . . . 1 . . . 1 . . . . . . . 1 Swap 13 | . . 1 . . . 1 6 1 . . 1 . 3 . . Drop 77 | . . 9 . . . 7 26 3 . . 14 3 14 1 . Fire 77 | . . 22 . . . 2 42 . . . 1 . 10 . . Melee 32 | . . . 17 . 15 . . . . . . . . . . Ram 3 | . . 3 . . . . . . . . . . . . . Kick 31 | . . . . . . . 7 . . . . . 24 . . Crush 10 | . . . . . . 1 9 . . . . . . . . Escape Stasis . | . . . . . . . . . . . . . . . . Rewire . | . . . . . . . . . . . . . . . . Trap . | . . . . . . . . . . . . . . . . Miscellaneous . | . . . . . . . . . . . . . . . . Route ------- -11/Scrapyard -10/Materials -9/Materials (discovered 2 exits: *Mat / *Min) -9/Mines (discovered 2 exits: *Mat / *Exi) -9/Exiles -8/Mines -8/Materials (discovered 2 exits: *Fac / Sto) -7/Factory (discovered 4 exits: *Fac x4) -6/Factory -6/Lower Caves -6/Lower Caves (discovered 2 exits: *Fac / *Zio) -6/Zion -5/Proximity Caves -5/Factory (discovered 3 exits: Fac / *Upp x2) -5/Upper Caves -5/Upper Caves (discovered 1 exit: *Fac) History --------- Turn | Location | Event 3 | -11/Scrapyard | Discovered new exit (range 16) 76 | -11/Scrapyard | Entered Materials 137 | -10/Materials | Discovered new exit (range 8) 142 | -10/Materials | Entered another Materials area 142 | -9/Materials | Evolved 2 slots: Utility x2 311 | -9/Materials | Build established: Mutant 396 | -9/Materials | Identified exit to Mines 517 | -9/Materials | Discovered new exit (range 16) 557 | -9/Materials | Lost 6 parts (1p2n1u2w) 559 | -9/Materials | Core integrity fell below 50% 560 | -9/Materials | Entered Mines 570 | -9/Mines | Learned 2 Materials zone layouts 765 | -9/Mines | Assisted by bots powering up and referring to "LRC-V3" 782 | -9/Mines | Discovered new exit (range 11) 818 | -9/Mines | Deemed a non-threat by the Exiles lab entrance 818 | -9/Mines | Discovered new exit (range 5) 821 | -9/Mines | Entered Exiles 838 | -9/Exiles | Met 8R-AWN 846 | -9/Exiles | Met EX-HEX 864 | -9/Exiles | Met EX-BIN 929 | -9/Exiles | Met EX-DEC 986 | -9/Exiles | Visited The Gauntlet 1344 | -9/Exiles | Discovered new exit (range 14) 1357 | -9/Exiles | Entered Mines 1433 | -8/Mines | Core integrity fell below 20% 1501 | -8/Mines | Discovered new exit (range 5) 1509 | -8/Mines | Entered Materials 1509 | -8/Materials | Evolved 2 slots: Propulsion x1, Weapon x1 1510 | -8/Materials | Identified exit to Storage 1829 | -8/Materials | Discovered new exit (range 19) 1833 | -8/Materials | Build established: Gunner 1882 | -8/Materials | Identified exit to Factory 1886 | -8/Materials | Entered Factory 1886 | -7/Factory | Evolved 2 slots: Power x1, Weapon x1 3474 | -7/Factory | Identified exit to Factory 3513 | -7/Factory | System corruption reached 10% 3553 | -7/Factory | Lost 9 parts (2p3n4w) 3562 | -7/Factory | Core integrity fell below 50% 3587 | -7/Factory | Entered another Factory area 3587 | -6/Factory | Evolved 2 slots: Propulsion x1, Utility x1 3614 | -6/Factory | Lost 5 parts (1p2n2u) 3644 | -6/Factory | Discovered new exit (range 10) 3646 | -6/Factory | Identified exit to Lower Caves 3647 | -6/Factory | Entered Lower Caves 3825 | -6/Lower Caves | Discovered new exit (range 11) 3830 | -6/Lower Caves | Identified exit to Lower Caves 3831 | -6/Lower Caves | Entered another Lower Caves area 3855 | -6/Lower Caves | Learned location of 1 exit from Factory 3856 | -6/Lower Caves | Discovered new exit (range 8) 3858 | -6/Lower Caves | Identified exit to Factory 3905 | -6/Lower Caves | Learned location of Zion (-6) 3907 | -6/Lower Caves | Learned location of 1 exit from Proximity Caves 3945 | -6/Lower Caves | Discovered new exit (range 15) 3949 | -6/Lower Caves | Identified exit to Zion 3952 | -6/Lower Caves | Entered Zion 3991 | -6/Zion | Discovered new exit (range 10) 4001 | -6/Zion | Identified exit to Proximity Caves 4262 | -6/Zion | Build established: Mutant 4339 | -6/Zion | Given the Hacking Drone Bay 4342 | -6/Zion | Found Prototype Device 4342 | -6/Zion | Identified Hacking Drone Bay 4540 | -6/Zion | Imprinted 4542 | -6/Zion | Declared Zion's savior 4689 | -6/Zion | Found Prototype Energy Gun 4689 | -6/Zion | Identified Storm Laser 4825 | -6/Zion | Given A8's code to call for help 4873 | -6/Zion | Received a visual enhancement algorithm 5003 | -6/Zion | Build established: Tank 5219 | -6/Zion | Entered Proximity Caves 5219 | -5/Proximity Caves | Accompanied by 4 allies 6285 | -5/Proximity Caves | Learned Factory trap positions 6366 | -5/Proximity Caves | Entered Factory 6366 | -5/Factory | Accompanied by 1 ally 6366 | -5/Factory | Evolved 2 slots: Utility x1, Weapon x1 6367 | -5/Factory | Identified exit to Upper Caves 6368 | -5/Factory | Identified exit to Factory 6369 | -5/Factory | Loaded intel: 101 trap records 6541 | -5/Factory | Zion Heavy squad teleported in 6729 | -5/Factory | Found Prototype Protection 6763 | -5/Factory | System corruption reached 10% 6809 | -5/Factory | Repaired Med. Storage Unit 6933 | -5/Factory | Lost 3 parts (2n1u) 7155 | -5/Factory | Spotted B-75 Beast 7213 | -5/Factory | Zion Kinetic Resupply teleported in 7230 | -5/Factory | Entered Upper Caves 7392 | -5/Upper Caves | Build established: Mutant 7426 | -5/Upper Caves | Attracted the attention of an 0b10 outpost 7446 | -5/Upper Caves | Core integrity fell below 50% 7449 | -5/Upper Caves | Identified Zio. Weapon Casing 7451 | -5/Upper Caves | Core integrity fell below 20% 7482 | -5/Upper Caves | Lost 7 parts (1p1n5u) 7591 | -5/Upper Caves | Discovered new exit (range 5) 7594 | -5/Upper Caves | Identified exit to Upper Caves 7609 | -5/Upper Caves | Entered another Upper Caves area 7638 | -5/Upper Caves | Learned Research terminal intel 7638 | -5/Upper Caves | Learned Extension trap positions 7657 | -5/Upper Caves | Enhanced Grunt warped into view, answering call for help 7664 | -5/Upper Caves | Enhanced Grunt warped into view, answering call for help 7738 | -5/Upper Caves | Learned Factory emergency access door positions 7770 | -5/Upper Caves | Encountered a Warlord checkpoint 7839 | -5/Upper Caves | Attracted the attention of an 0b10 outpost 7839 | -5/Upper Caves | Discovered exit to Factory (range 6) 7845 | -5/Upper Caves | Destroyed by G-67 Veteran with Field Laser Last Messages --------------- 07772_ Found 18 Matter. 07777_ Acquired Imp. Reaction Control System. 07778_ Acquired 10 matter. 07782_ System corrupted: Matter fused (-10). 07800_ System corrupted: Energy discharge (-26). 07804_ Acquired 10 matter. 07819_ System corrupted: IFF burst signal emitted. 07825_ Slug penetrates Wall. 07830_ Enhanced Grunt destroyed. 07837_ G-50 Soldier destroyed. 07839_ Y-72 Warden: "DETECTED UNIDENTIFIED DERELICT." 07839_ EXIT=FOUND: FACTORY 07843_ Y-72 Warden: "REQUESTING BACKUP." 07843_ C-30 ARC bursts open, deploying its payload. 07843_ G-67 Veteran unfolds itself. 07843_ B-60 Warrior unfolds itself. 07843_ L-41 Fighter unfolds itself. 07843_ E-15 Imp unfolds itself. 07844_ Adv. Signal Interpreter destroyed. 07844_ System corrupted by crushing effect (+3). Map ----- +----------------------------------------------------+ | ???????????????????# " #???# | | ???????????????????# " ##?### | | ???????????????????# """"" ###### #??# | | ???????????????????# "" "" #????# ##?## ## | | ??????????????????## " ##???# ##### ##" | | ??????????????????# " ##??## #### %""" | | ??????????????????## "### ##### ### #" | | ???????????????????# #### ## #" | | ??????????????????## # #" | | ??????????????????#"% ####### #" | | ???????????#?????###% ### #?????# ## | | ??????????? ????## #?# #???### # | | ?????# ???# ???# % #" #?# ##### ## | | ?????? ???# ??## ### ####?# %! # | | ?????? ??# ###" % #?####????##]#### ### | | ?????##//###!# ###????????# #??# #?## # | | ????? ?/%] % ""######???# #??# #### ## | | ?????? !#!== #???# #??# ## ### | | ????????"""# # % #???# #??# ### | | # #######" # ### ##?## ### # | | ??# ##??? ### | | ??????# % #???? ## | | ??????## ### ### #???? ### | | ???????#????# #?# ##### ## | | ????????????## #?# # l | | ?????????????####?# b@ ## | | ??????????????????# e #?## | | ?????????????????# b